bitfinex/quotes_BTCUSD_20260311
["timestamp","ask_amount","ask_price","bid_price","bid_amount"]
[1773204747931,0.3861823,70129.0,70118.0,0.04574181]
[1773204748435,0.3847423,70129.0,70118.0,0.04574181]
[1773204748747,0.00144,70128.0,70118.0,0.04574181]
[1773204749133,0.00144,70128.0,70118.0,0.04674181]
[1773204749306,0.00144,70128.0,70119.0,0.07130734]
[1773204753717,0.00144,70128.0,70118.0,0.04574181]
[1773204753919,0.00144,70128.0,70119.0,0.07130734]
[1773204754907,0.3847423,70129.0,70120.0,0.04574181]
[1773204755147,0.00144,70128.0,70119.0,0.07130734]
[1773204755363,0.04794265,70128.0,70119.0,0.07130734]
[1773204755735,0.04794265,70128.0,70114.0,0.07131243]
[1773204756358,0.04816266,70128.0,70114.0,0.07131243]
[1773204757528,0.04816266,70128.0,70114.0,0.07231243]
[1773204758087,0.04816266,70128.0,70114.0,0.07331243]
[1773204758501,0.04816266,70128.0,70114.0,0.12318646]
[1773204758700,0.04816266,70128.0,70114.0,0.07331243]
[1773204758900,0.04816266,70128.0,70115.0,0.04987403]
[1773204759694,0.00166001,70128.0,70115.0,0.04987403]
[1773204759895,0.00166001,70128.0,70116.0,0.07131039]
[1773204760990,0.3847423,70127.0,70116.0,0.07131039]
[1773204761191,0.3847423,70127.0,70116.0,0.07231039]
[1773204761593,0.3847423,70127.0,70116.0,0.07331039]
[1773204761791,0.3847423,70127.0,70116.0,0.07231039]
[1773204762224,0.3847423,70127.0,70116.0,0.07331039]
[1773204762391,0.3847423,70127.0,70116.0,0.07131039]
[1773204762597,0.3847423,70127.0,70116.0,0.07331039]
[1773204763005,0.3847423,70127.0,70116.0,0.07231039]
[1773204763406,0.3847423,70127.0,70116.0,0.07331039]
[1773204763907,0.3847423,70127.0,70116.0,0.07231039]
[1773204764237,0.3847423,70127.0,70116.0,0.07331039]
[1773204764699,0.3847423,70127.0,70116.0,0.07351039]
[1773204767946,0.3847423,70127.0,70117.0,0.04987403]
[1773204768554,0.3847423,70127.0,70118.0,0.07130836]
[1773204769690,0.3845324,70127.0,70118.0,0.07230836]
[1773204770118,0.3845324,70127.0,70118.0,0.07130836]
[1773204771127,0.0002099,70126.0,70118.0,0.07230836]
[1773204771436,0.0002099,70126.0,70118.0,0.07330836]
[1773204771793,0.0002099,70126.0,70118.0,0.07230836]
[1773204771997,0.0002099,70126.0,70119.0,0.04869327]
[1773204772255,0.3845324,70127.0,70119.0,0.04869327]
[1773204772417,0.3859724,70132.0,70119.0,0.04869327]
[1773204772608,0.3859724,70132.0,70120.0,0.07130633]
[1773204773239,0.3859724,70132.0,70121.0,0.13993818]
[1773204773415,0.3845324,70132.0,70122.0,0.04869327]
[1773204773617,0.0488764,70140.0,70120.0,0.12013308]
[1773204773618,0.0712618,70164.0,70125.0,0.00023]
[1773204773821,0.02869872,70163.0,70150.0,0.04882675]
[1773204774042,0.02869872,70163.0,70140.0,0.43944075]
[1773204774043,0.02869872,70163.0,70147.0,0.05013327]
[1773204774313,0.0488764,70162.0,70128.0,0.21043274]
[1773204774515,0.0488764,70161.0,70140.0,0.04882675]
[1773204774683,6.833e-05,70165.0,70150.0,0.04882675]
[1773204774684,0.02869872,70160.0,70150.0,0.04882675]
[1773204775031,6.833e-05,70165.0,70151.0,0.05013327]
[1773204775205,0.0002229,70169.0,70155.0,0.04882675]
[1773204775354,0.0002229,70169.0,70160.0,0.04869327]
[1773204775756,0.0488764,70177.0,70160.0,0.04869327]
[1773204775955,0.1391754,70175.0,70160.0,0.05013327]
[1773204776417,0.0488764,70174.0,70160.0,0.00144]
[1773204776608,0.07125247,70173.0,70155.0,0.07127075]
[1773204776809,0.0488764,70172.0,70155.0,0.11996402]
[1773204777027,0.00144,70171.0,70156.0,0.04869327]
[1773204777456,1e-08,70180.0,70161.0,0.04869327]
[1773204777864,0.00144,70179.0,70161.0,0.04869327]
[1773204778364,0.0488764,70184.0,70161.0,0.04869327]
[1773204778560,0.00144,70180.0,70170.0,0.04869327]
[1773204778718,0.07123755,70188.0,70170.0,0.04869327]
[1773204778719,0.00144,70182.0,70172.0,0.04869327]
[1773204779979,0.00181403,70182.0,70172.0,0.04869327]
[1773204780142,0.00181403,70182.0,70172.0,0.04969327]
[1773204780351,0.0737811,70192.0,70172.0,0.04969327]
[1773204780352,0.002547,70192.0,70172.0,0.04969327]
[1773204780567,0.0488764,70191.0,70172.0,0.00137403]
[1773204780781,0.0488764,70191.0,70174.0,0.04869327]
[1773204780990,0.002547,70192.0,70181.0,0.04869327]
[1773204781158,0.0001045,70196.0,70184.0,0.04869327]
[1773204781362,0.07133392,70196.0,70180.0,0.05026675]
[1773204781616,0.0001045,70196.0,70180.0,0.05026675]
[1773204781829,0.22469839,70201.0,70180.0,0.05026675]
[1773204781830,0.00023,70225.0,70180.0,0.44088075]
[1773204781970,0.00737245,70230.0,70215.0,0.04882675]
[1773204782172,1e-08,70236.0,70221.0,0.04869327]
[1773204782396,0.07115985,70265.0,70220.0,0.4882675]
[1773204782397,0.0003536,70274.0,70227.0,0.04869327]
[1773204782559,0.0003536,70274.0,70216.0,0.17112]
[1773204782560,0.0003536,70274.0,70225.0,0.00023]
[1773204782561,0.0488764,70262.0,70225.0,0.00023]
[1773204782763,0.07116289,70262.0,70231.0,0.04869327]
[1773204782981,0.00562,70264.0,70241.0,0.04869327]
[1773204783184,0.0059945,70264.0,70251.0,0.04869327]
[1773204783402,0.0059945,70264.0,70253.0,0.04869327]
[1773204783575,0.0059945,70264.0,70240.0,0.43944075]
[1773204783576,0.07715536,70264.0,70254.0,0.00144]
[1773204783801,0.07715535,70264.0,70242.0,0.00144]
[1773204783969,0.07715535,70264.0,70243.0,0.04869327]
[1773204784164,0.00144,70263.0,70250.0,0.04882675]
[1773204784416,0.0488764,70263.0,70230.0,0.04882675]
[1773204784616,0.0488764,70263.0,70254.0,0.001]
[1773204784817,0.0488764,70263.0,70243.0,0.00144]
[1773204784818,0.12003862,70262.0,70243.0,0.00144]
[1773204785181,0.0488764,70261.0,70237.0,0.07118755]
[1773204785413,0.07116222,70263.0,70241.0,0.04869327]
[1773204785414,0.0711612,70263.0,70241.0,0.04869327]
[1773204785575,0.0711612,70263.0,70241.0,0.04838918]
[1773204786124,0.00144,70262.0,70241.0,0.04838918]
[1773204786623,0.00144,70262.0,70237.0,0.07067755]
[1773204786624,0.0488764,70261.0,70237.0,0.07067755]
[1773204786824,0.0488764,70261.0,70232.0,0.11988487]
[1773204786825,0.17068069,70259.0,70232.0,0.11988487]
[1773204787062,0.0488764,70258.0,70233.0,0.00129603]
[1773204787272,0.02817792,70299.0,70240.0,0.14590615]
[1773204787463,0.0488764,70274.0,70240.0,0.14590615]
[1773204787636,0.0488764,70272.0,70241.0,0.00144]
[1773204787960,0.0488764,70272.0,70240.0,0.0003745]
[1773204787961,0.001,70261.0,70242.0,0.00144]
[1773204788158,0.001,70261.0,70240.0,0.0003745]
[1773204788159,0.0498764,70261.0,70240.0,0.0003745]
[1773204788385,0.0488764,70261.0,70241.0,0.00144]
[1773204788575,0.04150563,70261.0,70240.0,0.0003745]
[1773204788774,0.07116424,70260.0,70241.0,0.07118349]
[1773204788927,0.0488764,70259.0,70241.0,0.07118349]
[1773204789373,0.0488764,70259.0,70240.0,0.07155809]
[1773204789721,0.07116222,70262.0,70241.0,0.02958902]
[1773204789924,0.00144,70261.0,70241.0,0.02958902]
[1773204790168,0.0503164,70261.0,70240.0,0.07155809]
[1773204790367,0.00144,70260.0,70240.0,0.07155809]
[1773204790571,0.0503164,70260.0,70240.0,0.07155809]
[1773204790978,0.0488764,70258.0,70240.0,0.07155809]
[1773204791185,0.07138075,70264.0,70241.0,0.0298616]
[1773204791383,0.0488764,70263.0,70241.0,0.0298616]
[1773204791683,0.00022001,70264.0,70243.0,0.0298616]
[1773204791988,0.00144,70263.0,70243.0,0.0298616]
[1773204792190,0.07138071,70264.0,70243.0,0.0298616]
[1773204792191,0.00022001,70264.0,70243.0,0.0298616]
[1773204792745,0.17068069,70290.0,70251.0,0.03039423]
[1773204792970,1e-08,70280.0,70262.0,0.03039423]
[1773204793169,1e-08,70280.0,70264.0,0.03039423]
[1773204794256,0.07112949,70295.0,70264.0,0.03039423]
[1773204794257,0.0993035,70299.0,70271.0,0.03068088]
[1773204794542,0.07168328,70307.0,70275.0,0.03091088]
[1773204794757,0.0488764,70306.0,70276.0,0.00083209]
[1773204794969,0.07111869,70305.0,70278.0,0.03089539]
[1773204795192,0.0488764,70304.0,70278.0,0.03089539]
[1773204795402,0.0488764,70302.0,70275.0,0.00023]
[1773204795601,0.0488764,70302.0,70275.0,0.0713782]
[1773204795921,0.00144,70301.0,70275.0,0.0713782]
[1773204796121,0.00144,70301.0,70276.0,0.03127518]
[1773204796323,0.0488764,70304.0,70276.0,0.03127518]
[1773204796770,0.0488764,70304.0,70275.0,0.0713782]
[1773204796967,0.0488764,70302.0,70275.0,0.00023]
[1773204797173,0.0488764,70302.0,70247.0,0.03234816]
[1773204797174,0.00023,70300.0,70264.0,0.07688075]
[1773204797347,0.00023,70300.0,70271.0,0.03144782]
[1773204797675,0.00023,70300.0,70273.0,0.03144782]
[1773204798306,0.00144,70299.0,70273.0,0.03144782]
[1773204798514,0.00023,70300.0,70273.0,0.03144782]
[1773204798652,0.00144,70298.0,70273.0,0.03144782]
[1773204798849,0.00144,70298.0,70274.0,0.07115006]
[1773204799049,0.00144,70298.0,70275.0,0.03178547]
[1773204799270,0.00144,70298.0,70274.0,0.07115006]
[1773204799271,0.0488764,70296.0,70274.0,0.07115006]
[1773204799707,0.00144,70295.0,70274.0,0.07115006]
[1773204799903,0.05280349,70294.0,70274.0,0.07115006]
[1773204800105,0.05280349,70294.0,70274.0,0.07263006]
[1773204800306,0.07112679,70297.0,70274.0,0.07263006]
[1773204800505,0.07112679,70298.0,70275.0,0.05534643]
[1773204800704,0.12393028,70298.0,70275.0,0.05534643]
[1773204800909,0.07112679,70298.0,70275.0,0.05534643]
[1773204801110,0.07112679,70298.0,70276.0,0.07262804]
[1773204801288,0.00023,70300.0,70276.0,0.07262804]
[1773204801486,0.07135443,70300.0,70277.0,0.05534643]
[1773204801918,0.00022001,70299.0,70277.0,0.05534643]
[1773204803077,0.00063526,70296.0,70277.0,0.0711468]
[1773204803322,0.00207526,70295.0,70276.0,0.07262804]
[1773204803541,0.00144,70295.0,70274.0,0.07114972]
[1773204803692,0.00014825,70294.0,70276.0,0.07114804]
[1773204804064,0.00014825,70294.0,70264.0,0.07688088]
[1773204804787,0.00014825,70294.0,70265.0,0.05674523]
[1773204805189,0.0007378,70293.0,70265.0,0.05674523]
[1773204805630,0.0007378,70293.0,70264.0,0.00572097]
[1773204806211,0.0007378,70293.0,70259.0,0.00148]
[1773204806432,0.07112982,70294.0,70259.0,0.00011143]
[1773204806433,0.00052765,70291.0,70259.0,0.00011143]
[1773204806670,0.17479623,70289.0,70260.0,0.05711414]
[1773204806798,0.00104819,70288.0,70260.0,0.05711414]
[1773204807445,0.00104819,70286.0,70261.0,0.12827737]
[1773204807648,0.00104819,70286.0,70259.0,0.07127645]
[1773204808201,0.00198922,70285.0,70260.0,0.05763824]
[1773204808405,0.07113691,70290.0,70260.0,0.05763824]
[1773204808406,0.07113479,70290.0,70261.0,0.05763824]
[1773204808611,0.00144,70289.0,70262.0,0.00148]
[1773204808906,0.00144,70289.0,70263.0,0.05763824]
[1773204809309,0.07113589,70288.0,70264.0,0.07264019]
[1773204809638,0.07113589,70288.0,70265.0,0.05763824]
[1773204810628,0.00562,70292.0,70271.0,0.0581661]
[1773204810823,0.07112915,70295.0,70271.0,0.0580901]
[1773204811240,0.07112915,70295.0,70273.0,0.0580901]
[1773204811683,0.07112795,70296.0,70273.0,0.0580901]
[1773204811684,0.00144,70296.0,70275.0,0.05866235]
[1773204812522,0.07134491,70299.0,70275.0,0.05866235]
[1773204812699,0.00144,70295.0,70275.0,0.05866235]
[1773204813898,0.00144,70294.0,70277.0,0.05960598]
[1773204815216,0.00144,70294.0,70277.0,0.05945399]
[1773204815920,0.07113083,70293.0,70265.0,0.07115905]
[1773204816117,0.07113083,70293.0,70250.0,0.11412802]
[1773204816118,0.00061079,70292.0,70260.0,0.07116386]
[1773204816415,0.00061079,70291.0,70260.0,0.07116386]
[1773204817005,0.00061079,70291.0,70251.0,0.0002]
[1773204817215,0.00061079,70291.0,70253.0,0.07202571]
[1773204817411,0.00562,70292.0,70253.0,0.07202571]
[1773204817615,0.17953823,70289.0,70254.0,0.05999744]
[1773204817820,0.00169108,70287.0,70256.0,0.07116778]
[1773204818042,0.00169108,70287.0,70256.0,0.13137009]
[1773204818177,0.00169108,70287.0,70256.0,0.06020231]
[1773204819012,0.00169108,70287.0,70253.0,0.0008545]
[1773204819212,0.00169108,70287.0,70253.0,0.07202529]
[1773204819797,0.00255352,70285.0,70253.0,0.07202529]
[1773204819999,0.17228,70284.0,70253.0,0.07202529]
[1773204820338,0.00255352,70283.0,70253.0,0.07202529]
[1773204820701,0.00255352,70283.0,70253.0,0.1322276]
[1773204821743,0.00338832,70274.0,70240.0,0.06020231]
[1773204821897,0.00338832,70272.0,70240.0,0.06020231]
[1773204822544,0.00148,70273.0,70219.0,0.06020231]
[1773204822545,0.17953823,70249.0,70219.0,0.06020231]
[1773204822743,0.00380501,70247.0,70219.0,0.06020231]
[1773204823343,0.00148,70246.0,70219.0,0.06020231]
[1773204823693,0.07117944,70245.0,70220.0,0.07120478]
[1773204823897,0.07117944,70245.0,70221.0,0.06020231]
[1773204824136,0.00492465,70244.0,70221.0,0.06020231]
[1773204824504,0.00492465,70244.0,70220.0,0.07120478]
[1773204824716,0.00492465,70244.0,70220.0,0.13140709]
[1773204825125,0.00492465,70244.0,70220.0,0.06020231]
[1773204825531,0.00148,70243.0,70220.0,0.06020231]
[1773204825739,0.00571003,70242.0,70220.0,0.06020231]
[1773204826153,0.07689352,70241.0,70221.0,0.07120377]
[1773204826348,0.07689352,70241.0,70222.0,0.06020231]
[1773204826554,0.07118349,70242.0,70222.0,0.06020231]
[1773204826555,0.00148,70240.0,70222.0,0.06020231]
[1773204826797,0.00148,70239.0,70222.0,0.06020231]
[1773204826996,0.00148,70238.0,70222.0,0.06020231]
[1773204827868,0.00148,70237.0,70222.0,0.05980231]
[1773204828066,0.00023,70250.0,70224.0,0.06000231]
[1773204828270,0.00148,70249.0,70224.0,0.06000231]
[1773204828458,0.001,70241.0,70224.0,0.06000231]
[1773204828892,0.00148,70243.0,70224.0,0.06000231]
[1773204829090,0.00148,70243.0,70224.0,0.06200231]
[1773204829363,0.00148,70243.0,70224.0,0.06100231]
[1773204829757,0.00148,70243.0,70224.0,0.06200231]
[1773204830363,0.00148,70243.0,70226.0,0.05991021]
[1773204831463,0.00148,70243.0,70226.0,0.06091021]
[1773204832251,0.00148,70242.0,70230.0,0.14603883]
[1773204832415,0.00023,70250.0,70230.0,0.14603883]
[1773204832416,0.00148,70246.0,70232.0,0.05991021]
[1773204832794,1e-08,70250.0,70232.0,0.05991021]
[1773204833000,0.00148,70249.0,70232.0,0.05991021]
[1773204834550,0.00148,70249.0,70234.0,0.05991021]
[1773204835445,1e-08,70250.0,70234.0,0.05991021]
[1773204835615,0.00148,70248.0,70234.0,0.05991021]
[1773204836445,0.00148,70248.0,70235.0,0.07118957]
[1773204836646,0.00148,70248.0,70236.0,0.05991021]
[1773204838055,0.00148,70248.0,70236.0,0.06091021]
[1773204838441,0.00148,70248.0,70237.0,0.07118755]
[1773204838617,0.00148,70248.0,70238.0,0.05991021]
[1773204840129,0.00148,70247.0,70238.0,0.06091021]
[1773204840328,0.00148,70247.0,70238.0,0.05991021]
[1773204840537,0.00148,70247.0,70234.0,0.0002]
[1773204840538,0.07265786,70247.0,70234.0,0.0002]
[1773204840743,0.03564165,70246.0,70228.0,0.05991021]
[1773204841060,0.03564165,70246.0,70220.0,0.0002]
[1773204841061,0.03564165,70246.0,70223.0,0.05991021]
[1773204841258,0.03564165,70246.0,70221.0,0.07120294]
[1773204841482,0.03564165,70246.0,70220.0,0.07140438]
[1773204841678,0.03564165,70246.0,70220.0,0.07140452]
[1773204841878,0.03564165,70246.0,70220.0,0.0002]
[1773204842080,0.03564165,70246.0,70215.0,0.07120913]
[1773204842285,0.03564165,70246.0,70213.0,0.07121188]
[1773204842460,0.03564165,70246.0,70213.0,0.07132358]
[1773204842658,0.0364654,70244.0,70213.0,0.07132358]
[1773204842881,0.0364654,70244.0,70213.0,0.07121188]
[1773204843486,0.0364654,70244.0,70213.0,0.57121188]
[1773204844090,0.0364654,70244.0,70213.0,0.2805474]
[1773204844294,0.0364654,70244.0,70212.0,0.07121226]
[1773204844494,0.0364654,70244.0,70212.0,0.07132415]
[1773204844788,0.03976446,70242.0,70212.0,0.00035969]
[1773204845005,0.03976446,70240.0,70212.0,0.00035969]
[1773204845173,0.03976446,70238.0,70212.0,0.00035969]
[1773204846404,0.04076446,70238.0,70213.0,0.05991021]
[1773204846603,0.04224303,70236.0,70213.0,0.05991021]
[1773204846950,0.04251519,70234.0,70215.0,0.05991021]
[1773204847109,0.00148,70233.0,70215.0,0.05991021]
[1773204847681,0.00148,70233.0,70215.0,0.06015801]
[1773204848082,0.00148,70233.0,70214.0,0.03136887]
[1773204848282,0.00148,70233.0,70215.0,0.05991021]
[1773204848933,0.07119261,70232.0,70216.0,0.13111905]
[1773204849733,0.06286595,70231.0,70216.0,0.13111905]
[1773204851356,0.13406044,70231.0,70217.0,0.05991021]
[1773204852126,0.00148,70230.0,70217.0,0.05991021]
[1773204852438,0.00148,70229.0,70217.0,0.05991021]
[1773204852612,0.07119272,70232.0,70217.0,0.05991021]
[1773204852813,0.00248,70231.0,70217.0,0.05991021]
[1773204853057,0.00148,70231.0,70217.0,0.05991021]
[1773204853254,0.07267393,70231.0,70218.0,0.07120681]
[1773204853455,0.07267393,70231.0,70218.0,0.13111702]
[1773204853658,0.00148,70230.0,70219.0,0.05991021]
[1773204853857,0.00148,70229.0,70219.0,0.05991021]
[1773204854057,0.00148,70228.0,70218.0,0.07120681]
[1773204854262,0.00148,70227.0,70218.0,0.07120681]
[1773204855235,0.00148,70227.0,70218.0,0.13111702]
[1773204855439,0.00148,70227.0,70218.0,0.13211702]
[1773204855638,0.00148,70227.0,70218.0,0.13311702]
[1773204856701,0.00148,70227.0,70219.0,0.05991021]
[1773204857567,0.00148,70227.0,70221.0,0.05991021]
[1773204858400,0.00148,70227.0,70217.0,0.07120681]
[1773204858619,0.07267788,70227.0,70218.0,0.07120579]
[1773204858960,0.00148,70227.0,70219.0,0.05991021]
[1773204859172,0.00148,70227.0,70221.0,0.06091021]
[1773204859368,0.00148,70227.0,70221.0,0.05991021]
[1773204860125,0.00148,70227.0,70222.0,0.07120275]
[1773204862224,0.00148,70227.0,70216.0,0.0664807]
[1773204864410,0.00148,70227.0,70217.0,0.07120782]
[1773204864589,0.00148,70227.0,70217.0,0.13768852]
[1773204864793,0.00148,70227.0,70218.0,0.0664807]
[1773204866516,0.00148,70227.0,70219.0,0.07120579]
[1773204867305,0.00148,70226.0,70219.0,0.13768649]
[1773204867543,0.07118757,70237.0,70219.0,0.13768649]
[1773204867544,0.00148,70225.0,70220.0,0.0664807]
[1773204867752,0.07118855,70237.0,70220.0,0.0664807]
[1773204867753,0.00148,70224.0,70220.0,0.0664807]
[1773204868299,0.00022001,70235.0,70220.0,0.0664807]
[1773204868477,0.00148,70234.0,70221.0,0.07120377]
[1773204868653,0.00148,70233.0,70222.0,0.0664807]
[1773204868870,0.07140994,70235.0,70222.0,0.0664807]
[1773204869072,0.07140994,70235.0,70221.0,0.07120377]
[1773204869367,0.07348738,70234.0,70221.0,0.07120377]
[1773204869575,0.07200738,70234.0,70221.0,0.07120377]
[1773204869769,0.00148,70233.0,70221.0,0.07120377]
[1773204870242,0.00148,70232.0,70221.0,0.07120377]
[1773204870670,0.07200738,70234.0,70220.0,0.0664807]
[1773204870811,0.00148,70231.0,70220.0,0.0664807]
[1773204871332,0.00148,70230.0,70220.0,0.0664807]
[1773204871721,0.00148,70229.0,70220.0,0.0664807]
[1773204872114,0.143198,70234.0,70220.0,0.0664807]
[1773204872321,0.00144,70228.0,70220.0,0.0664807]
[1773204872520,0.00144,70228.0,70221.0,0.07120377]
[1773204872719,0.00144,70227.0,70221.0,0.13768447]
[1773204872919,0.00144,70226.0,70222.0,0.0664807]
[1773204873173,0.07140967,70235.0,70222.0,0.0664807]
[1773204873174,0.00022001,70235.0,70222.0,0.0664807]
[1773204873406,0.00144,70234.0,70222.0,0.0664807]
[1773204873614,1e-08,70250.0,70222.0,0.0664807]
[1773204873762,0.00144,70243.0,70222.0,0.0664807]
[1773204874140,1e-08,70250.0,70222.0,0.0664807]
[1773204874466,0.00144,70249.0,70232.0,0.0664807]
[1773204874657,0.07261626,70249.0,70234.0,0.0664807]
[1773204874835,0.00144,70249.0,70234.0,0.0664807]
[1773204875261,0.0711744,70250.0,70234.0,0.0664807]
[1773204875461,0.00144,70249.0,70234.0,0.0664807]
[1773204875885,0.00144,70249.0,70234.0,0.06659259]
[1773204876083,0.00144,70248.0,70234.0,0.06659259]
[1773204877463,0.00144,70247.0,70236.0,0.0664807]
[1773204877937,0.00022001,70244.0,70236.0,0.0664807]
[1773204878643,0.00022001,70244.0,70236.0,0.0674807]
[1773204879990,0.07678097,70264.0,70237.0,0.14447191]
[1773204880203,0.02605192,70274.0,70250.0,0.07328436]
[1773204880676,0.00144,70273.0,70250.0,0.07328436]
[1773204880880,0.03063745,70272.0,70250.0,0.07328436]
[1773204881304,0.00144,70273.0,70250.0,0.07328436]
[1773204881510,0.00144,70273.0,70250.0,0.07428436]
[1773204881639,0.07660402,70273.0,70250.0,0.07328436]
[1773204882040,0.07660402,70273.0,70251.0,0.07117336]
[1773204882255,0.07660402,70273.0,70252.0,0.07328436]
[1773204882454,0.07516402,70272.0,70230.0,0.14603883]
[1773204882665,0.07516402,70272.0,70239.0,0.07328436]
[1773204882870,0.07516402,70272.0,70241.0,0.07328436]
[1773204883195,0.07516402,70270.0,70241.0,0.07328436]
[1773204883495,0.07516402,70268.0,70241.0,0.07328436]
[1773204884152,0.07516402,70268.0,70240.0,0.00144]
[1773204884153,1e-08,70287.0,70266.0,0.18453665]
[1773204884361,1e-08,70287.0,70267.0,0.07472436]
[1773204884573,0.00144,70286.0,70267.0,0.07472436]
[1773204885225,0.00144,70285.0,70267.0,0.07472436]
[1773204885430,0.00144,70286.0,70267.0,0.07472436]
[1773204885642,0.00144,70287.0,70267.0,0.07509943]
[1773204885851,1e-08,70292.0,70267.0,0.07509943]
[1773204886064,1e-08,70292.0,70267.0,0.07609943]
[1773204886270,0.00144001,70292.0,70269.0,0.07328436]
[1773204887542,0.00144,70294.0,70269.0,0.07428436]
[1773204887750,0.00045001,70300.0,70281.0,0.07328436]
[1773204887948,0.00045001,70300.0,70281.0,0.07472436]
[1773204888097,0.00144,70298.0,70282.0,0.07114197]
[1773204888302,0.00045001,70300.0,70283.0,0.07328436]
[1773204889297,0.07660402,70299.0,70283.0,0.07328436]
[1773204889500,0.00045001,70300.0,70283.0,0.07328436]
[1773204889716,0.00144,70298.0,70283.0,0.07428436]
[1773204890328,0.00144,70299.0,70285.0,0.07142903]
[1773204891091,0.00045001,70300.0,70285.0,0.07142903]
[1773204891295,0.00144,70298.0,70285.0,0.07142903]
[1773204891899,0.00144,70298.0,70285.0,0.07242903]
[1773204892295,0.07256679,70298.0,70286.0,0.07113792]
[1773204892497,0.07256679,70298.0,70268.0,0.07115592]
[1773204892498,0.0705514,70297.0,70273.0,0.00144]
[1773204892728,0.0705514,70297.0,70274.0,0.07142903]
[1773204892939,0.00144,70296.0,70274.0,0.07142903]
[1773204893117,0.0719914,70296.0,70285.0,0.001]
[1773204893441,0.0719914,70296.0,70274.0,0.07142903]
[1773204893649,0.00144,70295.0,70269.0,0.07115513]
[1773204893848,0.0705514,70294.0,70270.0,0.07142903]
[1773204894613,0.07113083,70293.0,70272.0,0.07142903]
[1773204895650,0.14168223,70293.0,70272.0,0.07142903]
[1773204895859,0.0705514,70292.0,70275.0,0.07142903]
[1773204896028,0.0705514,70292.0,70274.0,0.0002]
[1773204896226,0.0705514,70292.0,70275.0,0.07142903]
[1773204896427,0.0705514,70292.0,70274.0,0.0002]
[1773204896632,0.16044481,70289.0,70269.0,0.07115503]
[1773204896836,0.0705514,70288.0,70267.0,0.00037507]
[1773204897037,0.00144,70287.0,70267.0,0.07153188]
[1773204897238,0.00144,70287.0,70267.0,0.00037507]
[1773204897239,0.0705514,70286.0,70267.0,0.00037507]
[1773204898056,0.0705514,70286.0,70259.0,0.07116469]
[1773204898261,0.07092647,70286.0,70259.0,0.07116469]
[1773204898677,0.02679494,70284.0,70256.0,0.1425968]
[1773204899195,0.02679494,70284.0,70256.0,0.07116777]
[1773204899395,0.02679494,70284.0,70257.0,0.07142903]
[1773204900211,0.02679494,70284.0,70250.0,0.07140403]
[1773204900412,0.02545655,70283.0,70250.0,1e-08]
[1773204900619,0.02545655,70281.0,70250.0,1e-08]
[1773204901263,0.02477822,70274.0,70242.0,0.07118248]
[1773204901464,0.00023,70275.0,70242.0,0.07118248]
[1773204901465,0.02477822,70272.0,70242.0,0.14261151]
[1773204901885,0.02477822,70272.0,70237.0,0.001797]
[1773204901886,0.02477822,70272.0,70237.0,0.000357]
[1773204902235,0.02477822,70272.0,70238.0,0.07142903]
[1773204902440,0.02410806,70270.0,70238.0,0.07142903]
[1773204902681,0.07115513,70269.0,70239.0,0.07118552]
[1773204902892,0.02344311,70268.0,70238.0,0.14261455]
[1773204903389,0.02344311,70268.0,70238.0,0.07142903]
[1773204903897,0.02044311,70268.0,70238.0,0.07142903]
[1773204904299,0.02144311,70268.0,70238.0,0.07142903]
[1773204904800,0.01915159,70266.0,70237.0,0.000357]
[1773204905265,0.01915159,70266.0,70228.0,0.07119638]
[1773204905266,0.01915159,70266.0,70232.0,0.00010201]
[1773204905463,0.01915159,70263.0,70232.0,0.00010201]
[1773204905664,0.01850611,70261.0,70233.0,0.07142903]
[1773204906210,0.01850611,70261.0,70238.0,0.0002]
[1773204906633,0.01888095,70261.0,70238.0,0.0002]
[1773204906830,0.07116424,70260.0,70238.0,0.0002]
[1773204907055,0.01790429,70258.0,70238.0,0.0002]
[1773204908579,0.01890429,70258.0,70238.0,0.0002]
[1773204908998,0.07116728,70257.0,70238.0,0.0002]
[1773204909204,0.04100086,70256.0,70238.0,0.0002]
[1773204909431,0.04100086,70254.0,70238.0,0.0002]
[1773204911245,0.03982763,70252.0,70238.0,0.0002]
[1773204913363,0.07117336,70251.0,70238.0,0.0002]
[1773204913555,0.03867707,70250.0,70238.0,0.0002]
[1773204914067,0.03867707,70250.0,70238.0,0.07138605]
[1773204914264,0.03867707,70250.0,70238.0,0.0002]
[1773204915656,0.07117539,70249.0,70238.0,0.0002]
[1773204915837,0.00144,70248.0,70238.0,0.0002]
[1773204917872,0.07117741,70247.0,70238.0,0.0002]
[1773204918166,0.03589656,70246.0,70232.0,0.00010201]
[1773204918940,0.03589656,70246.0,70224.0,0.07120067]
[1773204919153,0.03589656,70246.0,70216.0,0.07140838]
[1773204919481,0.03589656,70246.0,70216.0,0.14283741]
[1773204919851,0.07117944,70245.0,70216.0,0.14283741]
[1773204920054,0.03441199,70244.0,70216.0,0.07162903]
[1773204920277,0.03441199,70244.0,70214.0,1e-08]
[1773204920478,0.03441199,70244.0,70213.0,1e-08]
[1773204920881,0.07117944,70245.0,70213.0,1e-08]
[1773204920882,0.06178346,70243.0,70213.0,1e-08]
[1773204921280,0.1411456,70243.0,70213.0,1e-08]
[1773204921484,0.06178346,70242.0,70213.0,1e-08]
[1773204921686,0.06178346,70240.0,70213.0,1e-08]
[1773204922002,0.06178346,70238.0,70213.0,1e-08]
[1773204923015,0.06178346,70238.0,70212.0,1e-08]
[1773204923215,0.06178346,70238.0,70208.0,0.00582]
[1773204923387,0.06178346,70238.0,70208.0,0.00593217]
[1773204923595,0.06278346,70238.0,70208.0,0.00593217]
[1773204923790,0.06378346,70238.0,70208.0,0.00593217]
[1773204923984,0.06178346,70236.0,70208.0,0.00593217]
[1773204924386,0.06740346,70236.0,70207.0,1e-08]
[1773204924584,0.06751583,70236.0,70207.0,1e-08]
[1773204926049,0.06178346,70234.0,70207.0,1e-08]
[1773204926285,0.06178346,70232.0,70207.0,1e-08]
[1773204928214,0.07119363,70231.0,70207.0,1e-08]
[1773204928353,0.07119363,70231.0,70204.0,0.0002]
[1773204928354,0.00023,70225.0,70197.0,1e-08]
[1773204928552,0.06297149,70224.0,70197.0,1e-08]
[1773204929071,0.06297149,70224.0,70195.0,1e-08]
[1773204929811,0.06397149,70224.0,70195.0,1e-08]
[1773204930049,0.06497149,70224.0,70195.0,1e-08]
[1773204930255,0.06153149,70221.0,70195.0,1e-08]
[1773204930523,0.06153149,70221.0,70195.0,0.0593943]
[1773204930524,0.06153149,70219.0,70195.0,0.0593943]
[1773204930728,0.00144,70218.0,70195.0,0.0593943]
[1773204930932,0.06153149,70217.0,70195.0,0.0593943]
[1773204932358,0.06153149,70215.0,70196.0,0.05939429]
[1773204934529,0.06153149,70213.0,70196.0,0.05939429]
[1773204934878,0.06153149,70211.0,70196.0,0.05939429]
[1773204935241,0.06153149,70211.0,70195.0,1e-08]
[1773204935440,0.06153149,70211.0,70196.0,0.0002]